fUST/lending_fUST_20260226
["ID","MTS","AMOUNT","RATE_DAILY","PERIOD"]
[406702835,1772103535672,-190.0,0.00012433,2]
[406702837,1772103643626,-596.0,0.00012432,2]
[406702838,1772103643654,-25.89013725,0.00012433,2]
[406702839,1772103643680,-500.0,0.00012433,2]
[406702840,1772103643709,-500.0,0.00012433,2]
[406702841,1772103643811,-493.77185129,0.00012433,2]
[406702842,1772103673010,-300.0,0.00012432,2]
[406702843,1772103673037,-6.22814871,0.00012433,2]
[406702844,1772103673064,-500.0,0.00012433,2]
[406702845,1772103673136,-9.43383983,0.00012433,2]
[406702850,1772103702367,-150.0,0.00012293,2]
[406702851,1772103702404,-150.0,0.00012293,2]
[406702852,1772103702434,-56.22814871,0.00012348,2]
[406702853,1772103702507,-93.77185129,0.00012348,2]
[406702854,1772103731712,-150.0,0.00012348,2]
[406702855,1772103731756,-56.22814871,0.00012375,2]
[406702856,1772103756083,1893.19763302,0.0001,2]
[406702857,1772103786787,528.41083329,0.00012001,2]
[406702859,1772103834921,-1000.0,0.0001217,2]
[406702860,1772103836750,-1000.0,0.0001217,2]
[406702861,1772103838853,-541.1412925,0.0001217,2]
[406702862,1772103838873,-150.0,0.00012293,2]
[406702863,1772103941096,-191.99,0.000123,2]
[406702864,1772103941118,-460.03,0.00012329,2]
[406702865,1772103941140,-383.36,0.00012329,2]
[406702866,1772103941161,-319.47,0.00012329,2]
[406702867,1772103941182,-266.22,0.00012329,2]
[406702868,1772103941202,-221.85,0.00012329,2]
[406702869,1772103941222,-150.0,0.00012348,2]
[406702870,1772103941243,-155.3441858,0.00012375,2]
[406702871,1772103941264,-150.0,0.00012403,2]
[406702872,1772103941285,-150.0,0.00012403,2]
[406702873,1772103941304,-150.0,0.00012403,2]
[406702874,1772103941325,-1200.0,0.00012431,2]
[406702875,1772103941347,-500.0,0.00012432,2]
[406702876,1772103941369,-500.0,0.00012432,2]
[406702877,1772103941391,-500.0,0.00012432,2]
[406702878,1772103941413,-500.0,0.00012432,2]
[406702879,1772103941434,-351.41042273,0.00012432,2]
[406702880,1772103941457,-500.0,0.00012432,2]
[406702881,1772103941479,-500.0,0.00012432,2]
[406702882,1772103941679,-500.0,0.00012432,2]
[406702883,1772103941702,-500.0,0.00012432,2]
[406702884,1772103941724,-500.0,0.00012432,2]
[406702885,1772103941746,-500.0,0.00012432,2]
[406702886,1772103941768,-500.0,0.00012432,2]
[406702887,1772103941789,-500.0,0.00012432,2]
[406702888,1772103941814,-500.0,0.00012432,2]
[406702889,1772103941837,-500.0,0.00012432,2]
[406702890,1772103941858,-500.0,0.00012432,2]
[406702891,1772103941884,-500.0,0.00012432,2]
[406702892,1772103941907,-500.0,0.00012432,2]
[406702893,1772103941929,-500.0,0.00012432,2]
[406702894,1772103941951,-500.0,0.00012432,2]
[406702895,1772103941971,-500.0,0.00012432,2]
[406702896,1772103941991,-500.0,0.00012432,2]
[406702897,1772103942013,-500.0,0.00012432,2]
[406702898,1772103942035,-500.0,0.00012432,2]
[406702899,1772103942056,-500.0,0.00012432,2]
[406702900,1772103942077,-184.72521683,0.00012432,2]
[406702901,1772103942098,-500.0,0.00012432,2]
[406702902,1772103942118,-500.0,0.00012432,2]
[406702903,1772103942142,-500.0,0.00012432,2]
[406702904,1772103942164,-500.0,0.00012432,2]
[406702905,1772103942185,-315.0121335,0.00012432,2]
[406702906,1772103942205,-500.0,0.00012432,2]
[406702907,1772103942227,-500.0,0.00012432,2]
[406702908,1772103942248,-500.0,0.00012432,2]
[406702909,1772103942271,-500.0,0.00012432,2]
[406702910,1772103942292,-500.0,0.00012432,2]
[406702911,1772103942313,-500.0,0.00012432,2]
[406702912,1772103942335,-412.76511593,0.00012432,2]
[406702913,1772103942356,-500.0,0.00012432,2]
[406702914,1772103942377,-500.0,0.00012432,2]
[406702915,1772103942398,-500.0,0.00012432,2]
[406702916,1772103942418,-500.0,0.00012432,2]
[406702917,1772103942439,-500.0,0.00012432,2]
[406702918,1772103942459,-500.0,0.00012432,2]
[406702919,1772103942479,-500.0,0.00012432,2]
[406702920,1772103942501,-500.0,0.00012432,2]
[406702921,1772103942522,-500.0,0.00012432,2]
[406702922,1772103942542,-500.0,0.00012432,2]
[406702923,1772103942563,-500.0,0.00012432,2]
[406702924,1772103942585,-500.0,0.00012432,2]
[406702925,1772103942606,-500.0,0.00012432,2]
[406702926,1772103942626,-500.0,0.00012432,2]
[406702927,1772103942647,-500.0,0.00012432,2]
[406702928,1772103942669,-500.0,0.00012432,2]
[406702929,1772103942690,-500.0,0.00012432,2]
[406702930,1772103942712,-500.0,0.00012432,2]
[406702931,1772103942732,-500.0,0.00012432,2]
[406702932,1772103942754,-500.0,0.00012432,2]
[406702933,1772103942775,-500.0,0.00012432,2]
[406702934,1772103942797,-500.0,0.00012432,2]
[406702935,1772103942820,-500.0,0.00012432,2]
[406702936,1772103942842,-500.0,0.00012432,2]
[406702937,1772103942865,-500.0,0.00012432,2]
[406702938,1772103942888,-500.0,0.00012432,2]
[406702939,1772103942909,-500.0,0.00012432,2]
[406702940,1772103942931,-500.0,0.00012432,2]
[406702941,1772103942954,-500.0,0.00012432,2]
[406702942,1772103942975,-500.0,0.00012432,2]
[406702943,1772103942995,-500.0,0.00012432,2]
[406702944,1772103943015,-500.0,0.00012432,2]
[406702945,1772103943035,-500.0,0.00012432,2]
[406702946,1772103943056,-500.0,0.00012432,2]
[406702947,1772103943076,-500.0,0.00012432,2]
[406702948,1772103943096,-500.0,0.00012432,2]
[406702949,1772103943117,-500.0,0.00012432,2]
[406702950,1772103943136,-500.0,0.00012432,2]
[406702951,1772103943156,-500.0,0.00012432,2]
[406702952,1772103943176,-500.0,0.00012432,2]
[406702953,1772103943196,-500.0,0.00012432,2]
[406702954,1772103943216,-500.0,0.00012432,2]
[406702955,1772103943235,-500.0,0.00012432,2]
[406702956,1772103943256,-500.0,0.00012432,2]
[406702957,1772103943277,-500.0,0.00012432,2]
[406702958,1772103943298,-500.0,0.00012432,2]
[406702959,1772103943319,-500.0,0.00012432,2]
[406702960,1772103943339,-214.88604334,0.00012432,2]
[406702961,1772103943359,-500.0,0.00012432,2]
[406702962,1772103943379,-500.0,0.00012432,2]
[406702963,1772103943400,-500.0,0.00012432,2]
[406702964,1772103943420,-500.0,0.00012432,2]
[406702965,1772103943442,-500.0,0.00012432,2]
[406702966,1772103943463,-500.0,0.00012432,2]
[406702967,1772103943486,-500.0,0.00012432,2]
[406702968,1772103943508,-500.0,0.00012432,2]
[406702969,1772103943531,-500.0,0.00012432,2]
[406702970,1772103943553,-500.0,0.00012432,2]
[406702971,1772103943575,-500.0,0.00012432,2]
[406702972,1772103943597,-500.0,0.00012432,2]
[406702973,1772103943620,-500.0,0.00012432,2]
[406702974,1772103943643,-162.52695143,0.00012432,2]
[406702975,1772103943666,-500.0,0.00012432,2]
[406702976,1772103943689,-500.0,0.00012432,2]
[406702977,1772103943711,-500.0,0.00012432,2]
[406702978,1772103943734,-500.0,0.00012432,2]
[406702979,1772103943756,-500.0,0.00012432,2]
[406702980,1772103943927,-500.0,0.00012432,2]
[406702981,1772103943950,-500.0,0.00012432,2]
[406702982,1772103943975,-500.0,0.00012432,2]
[406702983,1772103943998,-500.0,0.00012432,2]
[406702984,1772103944025,-500.0,0.00012432,2]
[406702985,1772103944050,-500.0,0.00012432,2]
[406702986,1772103944073,-500.0,0.00012432,2]
[406702987,1772103944095,-500.0,0.00012432,2]
[406702988,1772103944117,-500.0,0.00012432,2]
[406702989,1772103944139,-200.0,0.00012432,2]
[406702990,1772103944161,-500.0,0.00012432,2]
[406702991,1772103944183,-500.0,0.00012432,2]
[406702992,1772103944204,-500.0,0.00012432,2]
[406702993,1772103944226,-500.0,0.00012432,2]
[406702994,1772103944246,-500.0,0.00012432,2]
[406702995,1772103944269,-500.0,0.00012432,2]
[406702996,1772103944289,-500.0,0.00012432,2]
[406702997,1772103944309,-500.0,0.00012432,2]
[406702998,1772103944329,-500.0,0.00012432,2]
[406702999,1772103944348,-500.0,0.00012432,2]
[406703000,1772103944368,-500.0,0.00012432,2]
[406703001,1772103944386,-300.0,0.00012432,2]
[406703002,1772103944404,-300.0,0.00012432,2]
[406703003,1772103944423,-300.0,0.00012432,2]
[406703004,1772103944441,-300.0,0.00012432,2]
[406703005,1772103944460,-490.56616017,0.00012433,2]
[406703006,1772103944479,-500.0,0.00012433,2]
[406703007,1772103944498,-500.0,0.00012433,2]
[406703008,1772103944518,-500.0,0.00012433,2]
[406703009,1772103944538,-500.0,0.00012433,2]
[406703010,1772103944558,-500.0,0.00012433,2]
[406703011,1772103944579,-500.0,0.00012433,2]
[406703012,1772103944599,-500.0,0.00012433,2]
[406703013,1772103944619,-500.0,0.00012433,2]
[406703014,1772103944639,-50000.0,0.00012433,2]
[406703015,1772103944659,-150.0,0.00012457,2]
[406703016,1772103944677,-150.0,0.00012457,2]
[406703017,1772103944695,-10300.38247452,0.000125,2]
[406703018,1772103944714,-150.0,0.00012512,2]
[406703019,1772103944734,-274.12850906,0.00012512,2]
[406703020,1772103944754,-500.0,0.00012566,2]
[406703021,1772103944775,-500.0,0.00012566,2]
[406703022,1772103944799,-500.0,0.00012566,2]
[406703023,1772103944820,-500.0,0.00012566,2]
[406703024,1772103944842,-500.0,0.00012566,2]
[406703025,1772103944863,-500.0,0.00012566,2]
[406703026,1772103944883,-500.0,0.00012566,2]
[406703027,1772103944906,-500.0,0.00012566,2]
[406703028,1772103944950,-203.60293897,0.00012566,2]
[406703029,1772103944993,-500.0,0.00012566,2]
[406703030,1772103945032,-500.0,0.00012566,2]
[406703031,1772103945069,-500.0,0.00012566,2]
[406703032,1772103945109,-500.0,0.00012566,2]
[406703033,1772103945142,-500.0,0.00012566,2]
[406703034,1772103945180,-500.0,0.00012566,2]
[406703035,1772103945211,-500.0,0.00012566,2]
[406703036,1772103945250,-500.0,0.00012566,2]
[406703037,1772103945284,-500.0,0.00012566,2]
[406703038,1772103945316,-500.0,0.00012566,2]
[406703039,1772103945347,-565.54296035,0.00012566,2]
[406703040,1772103945377,-220.91462396,0.00012567,2]
[406703041,1772103945407,-200.0,0.00012567,2]
[406703042,1772103945437,-157.442,0.00012567,2]
[406703043,1772103945469,-782.23045624,0.00012623,2]
[406703044,1772103945505,-300.0,0.00012818,2]
[406703045,1772103945537,-300.0,0.00012818,2]
[406703046,1772103945570,-300.0,0.00012818,2]
[406703047,1772103945602,-300.0,0.00012818,2]
[406703048,1772103945635,-300.0,0.00012818,2]
[406703049,1772103945667,-300.0,0.00012818,2]
[406703050,1772103945699,-300.0,0.00012818,2]
[406703051,1772103945731,-300.0,0.00012818,2]
[406703052,1772103945764,-300.0,0.00012818,2]
[406703053,1772103945799,-300.0,0.00012818,2]
[406703054,1772103945834,-300.0,0.00012818,2]
[406703055,1772103945868,-300.0,0.00012818,2]
[406703056,1772103945901,-300.0,0.00012818,2]
[406703057,1772103945938,-300.0,0.00012818,2]
[406703058,1772103945972,-300.0,0.00012818,2]
[406703059,1772103946004,-8009.63249028,0.00013,2]
[406703060,1772103946039,-1000.0,0.00013,7]
[406703061,1772103946073,-564.72806545,0.00013273,2]
[406703062,1772103946108,-500.0,0.00013273,2]
[406703063,1772103946139,-176.0,0.000136,2]
[406703064,1772103946173,-3302.02046144,0.0001369,2]
[406703066,1772104038093,-2263.63,0.00012329,2]
[406703067,1772104038113,-2099.01,0.00012329,2]
[406703068,1772104038133,-1749.18,0.00012329,2]
[406703069,1772104038152,-1457.65,0.00012329,2]
[406703070,1772104038172,-210.44777153,0.0001238,2]
[406703071,1772104038194,-500.0,0.00012432,2]
[406703072,1772104038215,-500.0,0.00012432,2]
[406703073,1772104038236,-500.0,0.00012432,2]
[406703074,1772104038258,-500.0,0.00012432,2]
[406703075,1772104038279,-500.0,0.00012432,2]
[406703076,1772104038300,-500.0,0.00012432,2]
[406703077,1772104038322,-500.0,0.00012432,2]
[406703078,1772104038343,-500.0,0.00012432,2]
[406703079,1772104038364,-500.0,0.00012432,2]
[406703080,1772104038385,-500.0,0.00012432,2]
[406703081,1772104038406,-500.0,0.00012432,2]
[406703082,1772104038427,-500.0,0.00012432,2]
[406703083,1772104038446,-500.0,0.00012432,2]
[406703084,1772104038467,-500.0,0.00012432,2]
[406703085,1772104038487,-500.0,0.00012432,2]
[406703086,1772104038507,-500.0,0.00012432,2]
[406703087,1772104038527,-500.0,0.00012432,2]
[406703088,1772104038547,-214.88604334,0.00012432,2]
[406703089,1772104038567,-500.0,0.00012432,2]
[406703090,1772104038590,-500.0,0.00012432,2]
[406703091,1772104038610,-500.0,0.00012432,2]
[406703092,1772104038631,-500.0,0.00012432,2]
[406703093,1772104038652,-500.0,0.00012432,2]
[406703094,1772104038674,-500.0,0.00012432,2]
[406703095,1772104038694,-500.0,0.00012432,2]
[406703096,1772104038714,-500.0,0.00012432,2]
[406703097,1772104038736,-500.0,0.00012432,2]
[406703098,1772104038756,-500.0,0.00012432,2]
[406703099,1772104038777,-162.52695143,0.00012432,2]
[406703100,1772104038797,-500.0,0.00012432,2]
[406703101,1772104038819,-500.0,0.00012432,2]
[406703102,1772104038843,-500.0,0.00012432,2]
[406703103,1772104038864,-500.0,0.00012432,2]
[406703104,1772104038886,-500.0,0.00012432,2]
[406703105,1772104038906,-500.0,0.00012432,2]
[406703106,1772104038928,-500.0,0.00012432,2]
[406703107,1772104038948,-500.0,0.00012432,2]
[406703108,1772104038969,-200.0,0.00012432,2]
[406703109,1772104038993,-500.0,0.00012432,2]
[406703110,1772104039012,-500.0,0.00012432,2]
[406703111,1772104039033,-500.0,0.00012432,2]
[406703112,1772104039052,-500.0,0.00012432,2]
[406703113,1772104039072,-500.0,0.00012432,2]
[406703114,1772104039095,-500.0,0.00012432,2]
[406703115,1772104039116,-500.0,0.00012432,2]
[406703116,1772104039139,-500.0,0.00012432,2]
[406703117,1772104039162,-351.41042273,0.00012432,2]
[406703118,1772104039183,-500.0,0.00012432,2]
[406703119,1772104039204,-500.0,0.00012432,2]
[406703120,1772104039226,-333.51092015,0.00012432,2]
[406703121,1772104039250,-500.0,0.00012432,2]
[406703122,1772104039271,-500.0,0.00012432,2]
[406703123,1772104039290,-500.0,0.00012432,2]
[406703124,1772104039310,-500.0,0.00012432,2]
[406703125,1772104039330,-500.0,0.00012432,2]
[406703126,1772104039351,-600.0,0.00012679,2]
[406703127,1772104039370,-500.0,0.00013273,2]
[406703128,1772104039390,-3115.41133484,0.000136,2]
[406703129,1772104039412,-487.82953856,0.0001369,2]
[406703130,1772104039435,-555.33802882,0.00013698,2]
[406703131,1772104039455,-500.0,0.00013698,2]
[406703132,1772104039476,-500.0,0.00013698,2]
[406703133,1772104039495,-1000.0,0.00013699,2]
[406703134,1772104039516,-494.73,0.000137,2]
[406703135,1772104039540,-494.73,0.000137,2]
[406703136,1772104039560,-494.73,0.000137,2]
[406703137,1772104039583,-494.73,0.000137,2]
[406703138,1772104039606,-494.73,0.000137,2]
[406703139,1772104039624,-494.73,0.000137,2]
[406703140,1772104039642,-494.73,0.000137,2]
[406703141,1772104039834,-494.73,0.000137,2]
[406703142,1772104039858,-494.73,0.000137,2]
[406703143,1772104039879,-494.73,0.000137,2]
[406703144,1772104039901,-494.73,0.000137,2]
[406703145,1772104039921,-494.73,0.000137,2]
[406703146,1772104039940,-494.73,0.000137,2]
[406703147,1772104039960,-494.79,0.000137,2]
[406703148,1772104039978,-501.10464966,0.00013821,2]
[406703149,1772104039999,-720.0,0.00013947,2]
[406703150,1772104040020,-976.94551945,0.00014175,2]
[406703151,1772104040044,-248.32837041,0.0001438,2]
[406703152,1772104040064,-1875.35546651,0.00014855,2]
[406703153,1772104040084,-598.34696001,0.000149,2]
[406703154,1772104040103,-1950.60005152,0.00015,2]
[406703155,1772104040122,-40966.93373304,0.00015,3]
[406703156,1772104048170,-150.0,0.00012293,2]
[406703157,1772104048190,-150.0,0.00012293,2]
[406703158,1772104048210,-133289.89665628,0.00015,3]
[406703159,1772104048229,-192.8213153,0.00015068,2]
[406703160,1772104048248,-896.89679221,0.00015193,3]
[406703161,1772104155122,-1843.60769149,0.00012307,2]
[406703165,1772104214586,189.36,9.5e-05,2]
[406703166,1772104215699,189.36,0.0001,2]
[406703167,1772104216012,189.36,0.000104,2]
[406703216,1772104232584,-327.0,0.00012307,2]
[406703217,1772104233600,-2829.39230851,0.00012307,2]
[406703218,1772104233609,-594.0,0.00012307,2]
[406703219,1772104233619,-1200.0,0.00014359,2]
[406703220,1772104233628,-6618.54610949,0.0001436,2]
[406703226,1772104238239,-3381.45389051,0.0001436,2]
[406703227,1772104238248,-317.81320779,0.00015193,3]
[406703228,1772104238258,-353.7210102,0.00015202,2]
[406703229,1772104238269,-146.2789898,0.00015202,2]
[406703230,1772104238278,-245.88007224,0.00015202,2]
[406703231,1772104238289,-2627.85282946,0.00015203,2]
[406703232,1772104238309,-1905.37739096,0.00015203,2]
[406703247,1772104241267,-14964.40164042,0.00015203,2]
[406703254,1772104245073,-9848.56580408,0.00015203,2]
[406703259,1772104245745,-49782.04930792,0.00015203,2]
[406703260,1772104245755,-600.0,0.00015506,2]
[406703261,1772104245765,-2342.40662987,0.00015536,2]
[406703262,1772104245775,-180.0,0.000156,2]
[406703263,1772104245785,-2773.76541358,0.00016216,2]
[406703264,1772104245796,-286.20896928,0.0001638,2]
[406703265,1772104245805,-1214.71,0.00016478,3]
[406703266,1772104245815,-2429.42,0.00016563,3]
[406703267,1772104245825,-1147.65924216,0.000168,2]
[406703268,1772104245834,-2797.12800474,0.00016897,2]
[406703269,1772104245844,-6127.28417409,0.00017,2]
[406703270,1772104245853,-720.0,0.00017057,2]
[406703271,1772104245862,-2429.42,0.00017848,3]
[406703272,1772104245872,-7702.51401792,0.00018,2]
[406703273,1772104245891,-683.83735435,0.00018,2]
[406703274,1772104246461,-2021.25087948,0.00018,2]
[406703275,1772104246561,-6220.15789422,0.00018,2]
[406703276,1772104246596,-17948.54685843,0.00018,2]
[406703277,1772104246606,-324.08956816,0.0001838,2]
[406703278,1772104246617,-500.0,0.00018748,2]
[406703279,1772104246627,-864.0,0.00018762,2]
[406703280,1772104246637,-100000.0,0.0001899,2]
[406703281,1772104246648,-500.0,0.00019094,2]
[406703282,1772104246658,-697.782282,0.00019178,2]
[406703283,1772104246669,-697.782282,0.00019178,2]
[406703284,1772104246679,-697.782282,0.00019178,2]
[406703285,1772104246690,-697.782282,0.00019178,2]
[406703286,1772104246700,-744.71502317,0.0001929,2]
[406703287,1772104246710,-303.62,0.000199,2]
[406703288,1772104246720,-3944.162225,0.0002,2]
[406703289,1772104246731,-5865.4558534,0.0002,120]
[406703290,1772104246741,-67888.39658581,0.0002,2]
[406703291,1772104437988,2570.26,0.00012001,2]
[406703294,1772104849236,168.9333,7.995e-05,2]
[406703302,1772105239091,-2176.72394635,0.00012932,2]
[406703304,1772105348086,-947.4361462,0.00012803,2]
[406703305,1772105348108,-383.83924639,0.00012932,2]
[406703306,1772105348128,-87.49430254,0.00012998,2]
[406703346,1772105432400,-105.10327159,0.00012998,2]
[406703348,1772105432409,-236.13672841,0.00012998,2]
[406703350,1772105432420,-316.45,0.00012998,2]
[406703384,1772105438554,-51.41327159,0.00012998,2]
[406703385,1772105438564,-200.0,0.00013525,2]
[406703386,1772105438573,-128.23570522,0.00013699,2]
[406703387,1772105438585,-75.30037928,0.00013699,2]
[406703388,1772105438594,-919.71350937,0.00014225,2]
[406703389,1772105438603,-191.99,0.000143,2]
[406703390,1772105438612,-300.0,0.00014311,2]
[406703391,1772105438621,-168.9333,0.00014537,2]
[406703392,1772105438631,-227.26513747,0.00014998,2]
[406703393,1772105438640,-1043.7010801,0.00015198,2]
[406703394,1772105438650,-500.0,0.0001553,2]
[406703395,1772105438659,-289.60979371,0.0001553,2]
[406703396,1772105438668,-832.52248053,0.00015531,2]
[406703397,1772105438679,-2585.79231612,0.00015531,2]
[406703398,1772105438691,-3080.6275727,0.00015531,2]
[406703722,1772105443550,-571.72472067,0.00015531,2]
[406703820,1772105445497,-8062.13093302,0.00015531,2]
[406703821,1772105445508,-3540.56804078,0.00015531,2]
[406703822,1772105446526,-18041.68467088,0.00015531,2]
[406703823,1772105446537,-2292.1350774,0.00015531,2]
[406703824,1772105446559,-241.85821626,0.00015531,2]
[406703825,1772105463019,-1163.22902459,0.00015431,2]
[406703828,1772106429137,-2701.8510521,0.00014523,2]
[406703829,1772106437090,-2176.72394635,0.00014378,2]
[406703830,1772106437110,-974.5162506,0.00014523,2]
[406703831,1772106437128,-1000.0,0.00014538,2]
[406703832,1772106437148,-211.69882833,0.00015019,2]
[406703833,1772106437166,-222.03383937,0.0001507,2]
[406703834,1772106437187,-3393.1204374,0.00015454,2]
[406703835,1772106437207,-300.0,0.00015499,2]
[406703836,1772106437228,-270.32,0.000155,2]
[406703837,1772106437247,-644.0,0.000155,2]
[406703838,1772106437266,-50000.0,0.00015531,2]
[406703839,1772106437285,-300.0,0.00015531,2]
[406703840,1772106437304,-300.0,0.00015531,2]
[406703841,1772106437326,-300.0,0.00015531,2]
[406703842,1772106437344,-300.0,0.00015531,2]
[406703843,1772106437364,-9130.0482144,0.00015532,2]
[406703844,1772106437383,-200.0,0.00015534,3]
[406703845,1772106437404,-322.27164099,0.00015552,2]
[406703846,1772106437424,-505.45409477,0.00015552,2]
[406703847,1772106437443,-500.0,0.00015552,2]
[406703848,1772106437463,-500.0,0.00015552,2]
[406703849,1772106437484,-500.0,0.00015552,2]
[406703850,1772106437505,-500.0,0.00015552,2]
[406703851,1772106437524,-500.0,0.00015552,2]
[406703852,1772106437544,-500.0,0.00015552,2]
[406703853,1772106437568,-500.0,0.00015552,2]
[406703854,1772106437591,-500.0,0.00015552,2]
[406703855,1772106437613,-391.50977102,0.00015552,2]
[406703856,1772106437635,-242.48146956,0.00015552,2]
[406703857,1772106437657,-500.0,0.00015552,2]
[406703858,1772106437678,-500.0,0.00015552,2]
[406703859,1772106437698,-500.0,0.00015552,2]
[406703860,1772106437718,-500.0,0.00015552,2]
[406703861,1772106437739,-500.0,0.00015552,2]
[406703862,1772106437759,-500.0,0.00015552,2]
[406703863,1772106437779,-500.0,0.00015552,2]
[406703864,1772106437799,-500.0,0.00015552,2]
[406703865,1772106437819,-500.0,0.00015552,2]
[406703866,1772106437840,-500.0,0.00015552,2]
[406703867,1772106437862,-500.0,0.00015552,2]
[406703868,1772106437882,-500.0,0.00015552,2]
[406703869,1772106437903,-500.0,0.00015552,2]
[406703870,1772106437924,-500.0,0.00015552,2]
[406703871,1772106437944,-500.0,0.00015552,2]
[406703872,1772106437965,-500.0,0.00015552,2]
[406703873,1772106437985,-500.0,0.00015552,2]
[406703874,1772106438005,-500.0,0.00015552,2]
[406703875,1772106438026,-500.0,0.00015552,2]
[406703876,1772106438046,-500.0,0.00015552,2]
[406703877,1772106438066,-500.0,0.00015552,2]
[406703878,1772106438086,-84.76245921,0.00015552,2]
[406703879,1772106546096,-500.0,0.00015532,2]
[406703880,1772106546118,-500.0,0.00015532,2]
[406703881,1772106546140,-500.0,0.00015532,2]
[406703882,1772106546164,-976.74772562,0.00015554,2]
[406703883,1772106546185,-150.0,0.00015556,2]
[406703884,1772106546208,-259.39545107,0.00015556,2]
[406703885,1772106546229,-150.0,0.00015611,2]
[406703886,1772106546250,-1341.70991179,0.000157,2]
[406703887,1772106546272,-586.95,0.00015819,3]
[406703888,1772106546297,-600.0,0.00015841,2]
[406703889,1772106546319,-161.469493,0.00016262,2]
[406703890,1772106546341,-250.0,0.00016438,2]
[406703891,1772106546362,-300.0,0.00016442,2]
[406703892,1772106546385,-983.99495735,0.00016443,2]
[406703893,1772106554101,-1955.62894128,0.00016443,2]
[406703894,1772106571228,-23280.58867338,0.00016443,2]
[406703895,1772106571248,-210.70199502,0.0001662,2]
[406703896,1772106571268,-524.73,0.00016797,2]
[406703897,1772106571286,-2012.069999,0.000168,2]
[406703898,1772106571310,-1048.23394997,0.000169,2]
[406703899,1772106571348,-161.469493,0.00016947,2]
[406703900,1772106571370,-2009.35352142,0.00017287,2]
[406703901,1772106571390,-2341.941461,0.00017324,2]
[406703902,1772106571410,-155.0,0.00017336,2]
[406703903,1772106571429,-1346.32160705,0.00017595,2]
[406703904,1772106571447,-161.469493,0.00017632,2]
[406703905,1772106571467,-420.0,0.00017969,2]
[406703906,1772106571487,-223.77627207,0.00018196,2]
[406703907,1772106571506,-161.469493,0.00018316,2]
[406703908,1772106571526,-3110.2631791,0.00018462,2]
[406703909,1772106571546,-248.62835412,0.0001862,2]
[406703910,1772106571567,-500.0,0.0001876,2]
[406703911,1772106571588,-500.0,0.0001882,2]
[406703912,1772106571613,-161.469493,0.00019001,2]
[406703913,1772106571635,-2796.56635646,0.00019263,2]
[406703914,1772106571656,-744.71502317,0.0001927,2]
[406703915,1772106571677,-500.0,0.00019453,2]
[406703916,1772106571697,-500.0,0.00019453,2]
[406703917,1772106571718,-500.0,0.00019453,2]
[406703918,1772106571739,-500.0,0.00019453,2]
[406703919,1772106571760,-284.24485141,0.00019453,2]
[406703920,1772106571779,-250.0,0.00019453,2]
[406703921,1772106571801,-194.72792766,0.00019453,2]
[406703922,1772106571825,-201.93286099,0.00019453,2]
[406703923,1772106571846,-209.40437684,0.00019453,2]
[406703924,1772106571868,-219.24103367,0.00019453,2]
[406703925,1772106571890,-217.15233878,0.00019453,2]
[406703926,1772106571913,-225.18697532,0.00019453,2]
[406703927,1772106571937,-233.51889341,0.00019453,2]